Cogmind - Beta 12 @@@ ROGUE MODE // 2023.04.21 @ 11:59:31 Player: maxwell Result: Self-destructed Performance ------------- Evolutions (9) 4500 Regions Visited (24) 4800 Robots Destroyed (256) 1280 Value Destroyed (13236) 13236 Prototype IDs (44) 880 Alien Tech Used (1) 200 Bonus (6655) 6655 TOTAL SCORE: 31551 Bonus ------- High Alert Combat Kills 1449 Follower Combat Kills 1774 Entered Garrisons 600 Used RIF Installer 500 Entered DSFs 500 Aligned with FarCom 300 Met Imprinter 300 Destroyed Z-Imprinter 1000 Triggered Deep Caves Wall 500 Exposed GOLEM Chamber 500 Friendly Fire -768 Cogmind --------- Core Integrity 793/1600 Matter 295/300 Energy 1701/2300 System Corruption 21% Temperature Cool (0) Movement Walking (146) Ox1 Location -1/Command Parts ------- > --- POWER (2) -------- Assembled Flux Generator > --- PROPULSION (4) --- Assembled Alloy Leg Assembled Alloy Leg Centrium Leg > --- UTILITY (17) ----- Assembled Nanovents Assembled Nanovents Assembled Nanovents Assembled Nanovents Compact Battery (fused) Assembled Biocell Array Assembled Biocell Array Assembled Suspension Frame Assembled Metafiber Network Assembled Combat Suite Assembled Alloy Armor Assembled Alloy Armor Assembled Alloy Armor Graphene Brace Relay Coupler [NC] (6) GOLEM Unit > --- WEAPON (3) ------- Assembled Focal Cannon Assembled Focal Cannon Assembled Focal Cannon > --- INVENTORY (5) ---- GOLEM Unit Advanced Remote Datajack Peak State ------------ > --- POWER ------------ Assembled Flux Generator > --- PROPULSION ------- Assembled Alloy Leg Assembled Alloy Leg Centrium Leg Centrium Leg > --- UTILITY ---------- Assembled Nanovents Assembled Nanovents Assembled Nanovents Assembled Nanovents High-capacity Storage Unit Assembled Biocell Array Assembled Biocell Array Assembled Suspension Frame Assembled Metafiber Network Assembled Combat Suite Advanced Cloaking Device Assembled Alloy Armor Assembled Alloy Armor Assembled Alloy Armor Assembled Alloy Armor GOLEM Unit > --- WEAPON ----------- Cooled Plasma Cannon Assembled Focal Cannon Assembled Focal Cannon > --- INVENTORY -------- Biometal Leg Biometal Leg Biometal Leg Biometal Leg Centrium Leg Improved Particle Charger Graphene Brace Relay Coupler [NC] Relay Coupler [NC] GOLEM Unit GOLEM Unit GOLEM Unit Proton Missile Launcher Proton Missile Launcher Advanced Remote Datajack Field Lobotomy Kit [Rating: 231] Favorites ----------- Power Assembled Flux Generator Engine Light Ion Engine Power Core Enhanced Nuclear Core Reactor Assembled Flux Generator Propulsion Assembled Alloy Leg Treads Light Treads Leg Assembled Alloy Leg Wheel Wheel Utility Assembled Alloy Armor Device Assembled Nanovents Storage Huge Storage Unit Processor Machine Analyzer Hackware Relay Coupler [NC] Protection Assembled Alloy Armor Weapon Assembled Focal Cannon Energy Gun Spread Laser Energy Cannon Assembled Focal Cannon Ballistic Gun Flak Gun Launcher Proton Missile Launcher Special Weapon Advanced Remote Datajack Slashing Weapon Greatsword Build | -11 -10 -10 -10 -9 -8 -7 -7 -7 -7 -7 -6 -6 -6 -6 -6 -6 -6 -5 -4 -4 -3 -2 -1 -1 ------- Run | Jun Mat Min Exi Min Mat Fac Low Low Zio Dee Pro Fac Gar Fac Gar Fac Gar Fac Fac DSF Res Res Acc Com Slots Evolved 18 | . . . . . 4 2 . . . . . 2 . . . . . 2 2 . 2 2 2 . Power 1 | . . . . . . . . . . . . 1 . . . . . . . . . . . . Propulsion 2 | . . . . . . . . . . . . . . . . . . . . . . 2 . . Utility 14 | . . . . . 4 2 . . . . . . . . . . . 2 2 . 2 . 2 . Weapon 1 | . . . . . . . . . . . . 1 . . . . . . . . . . . . Parts Attached 160 | 2 9 . . 4 36 8 1 3 5 33 7 . 1 1 4 . 3 3 1 2 10 7 14 6 Power 10 | . . . . 1 4 2 . . . 1 2 . . . . . . . . . . . . . Engine 6 | . . . . 1 3 1 . . . . 1 . . . . . . . . . . . . . Core 2 | . . . . . 1 1 . . . . . . . . . . . . . . . . . . Reactor 2 | . . . . . . . . . . 1 1 . . . . . . . . . . . . . Propulsion 21 | 2 . . . 1 10 . . 1 . 2 . . . . . . . . . . . 2 3 . Treads 8 | 2 . . . 1 5 . . . . . . . . . . . . . . . . . . . Leg 7 | . . . . . . . . . . 2 . . . . . . . . . . . 2 3 . Wheel 6 | . . . . . 5 . . 1 . . . . . . . . . . . . . . . . Hover . | . . . . . . . . . . . . . . . . . . . . . . . . . Flight . | . . . . . . . . . . . . . . . . . . . . . . . . . Utility 68 | . 6 . . 1 13 6 1 2 1 15 1 . . . . . . 1 . 1 6 3 8 3 Device 28 | . 1 . . 1 5 2 1 . . 6 . . . . . . . . . . 3 2 5 2 Storage 13 | . 4 . . . . . . . . 5 1 . . . . . . . . 1 . . 2 . Processor 5 | . . . . . 2 1 . . . . . . . . . . . . . . . 1 . 1 Hackware 7 | . . . . . 1 1 . . . . . . . . . . . 1 . . 3 . 1 . Protection 15 | . 1 . . . 5 2 . 2 1 4 . . . . . . . . . . . . . . Artifact . | . . . . . . . . . . . . . . . . . . . . . . . . . Weapon 61 | . 3 . . 1 9 . . . 4 15 4 . 1 1 4 . 3 2 1 1 4 2 3 3 Energy Gun 11 | . 2 . . 1 5 . . . . . 2 . . . 1 . . . . . . . . . Energy Cannon 13 | . . . . . . . . . 1 4 . . . 1 2 . 2 . . 1 . 2 . . Ballistic Gun 5 | . 1 . . . . . . . . 4 . . . . . . . . . . . . . . Ballistic Cannon . | . . . . . . . . . . . . . . . . . . . . . . . . . Launcher 11 | . . . . . . . . . 1 5 2 . 1 . 1 . 1 . . . . . . . Special Weapon 15 | . . . . . . . . . 1 1 . . . . . . . 2 1 . 4 . 3 3 Impact Weapon . | . . . . . . . . . . . . . . . . . . . . . . . . . Slashing Weapon 6 | . . . . . 4 . . . 1 1 . . . . . . . . . . . . . . Piercing Weapon . | . . . . . . . . . . . . . . . . . . . . . . . . . Special Melee Weapon . | . . . . . . . . . . . . . . . . . . . . . . . . . Unidentified Prototypes 11 | . . . . . . 1 . 1 . 6 2 . . 1 . . . . . . . . . . Parts Lost 55 | . . . . 3 11 . . 1 . 4 3 . . 1 6 . 3 2 . . 1 . 11 9 Power 6 | . . . . 1 2 . . . . . 1 . . . . . . . . . . . 1 1 Propulsion 8 | . . . . 1 4 . . 1 . 1 . . . . . . . . . . . . . 1 Utility 31 | . . . . . 3 . . . . 3 2 . . 1 3 . 2 2 . . 1 . 8 6 Weapon 10 | . . . . 1 2 . . . . . . . . . 3 . 1 . . . . . 2 1 Highest Loss Streak 8 | . . . . 2 8 . . 1 . 2 2 . . 1 6 . 2 2 . . 1 . 4 6 To Critical Strikes . | . . . . . . . . . . . . . . . . . . . . . . . . . Average Slot Usage (%) 89 | . 96 100 100 99 86 84 84 84 87 89 89 86 87 86 86 87 86 86 88 88 87 90 89 86 Engine 3 | . 14 14 14 13 6 6 . . . . 1 . . . . . . . . . . . . . Core 1 | . . . . . 2 . 7 7 7 6 . . . . . . . . . . . . . . Reactor 1 | . . . . . . . . . . . 4 6 6 6 6 6 6 5 5 4 4 4 2 2 Treads 6 | . 28 28 28 28 5 . . . . . . . . . . . . . . . . . . . Leg 6 | . . . . . . . . . . 8 13 12 12 12 12 12 12 11 10 10 9 15 15 13 Wheel 3 | . . . . . 11 15 15 14 14 4 . . . . . . . . . . . . . . Device 20 | . 8 14 14 13 14 1 14 14 14 19 28 25 25 25 30 31 30 30 29 32 27 29 34 33 Storage 12 | . 14 14 14 14 9 7 7 7 7 13 20 18 18 17 12 12 12 11 14 14 13 12 9 11 Processor 4 | . . . . . 10 15 15 14 14 10 . . . . . . . . . . . 3 . 1 Protection 9 | . 2 . . . 13 21 15 15 21 11 7 6 6 6 6 6 6 10 10 9 13 12 12 6 Energy Gun 6 | . 22 28 28 28 5 . . . . . 1 . . . . 6 1 . . . . . . . Energy Cannon 5 | . . . . . . . . . 2 4 11 17 13 14 12 12 16 15 11 15 10 12 10 9 Launcher 1 | . . . . . . . . . 2 5 . . 4 3 4 . . . . . . . . . Slashing Weapon 1 | . . . . . 7 7 7 7 4 . . . . . . . . . . . . . . . Naked Turns . | . . . . . . . . . . . . . . . . . . . . . . . . . Heaviest Build 183 | 11 90 90 90 92 114 117 116 119 128 135 135 177 177 177 170 153 168 181 183 176 151 150 149 110 Greatest Support 140 | 40 40 40 40 40 40 20 20 26 26 80 80 60 60 60 60 60 80 80 80 80 80 140 140 138 Greatest Overweight (x) 38 | . 2 2 2 2 30 5 5 5 4 7 38 2 2 2 2 2 2 3 2 2 2 1 1 1 Average Overweight (x) 2 | . 1 2 2 2 4 5 5 4 4 3 1 2 2 2 2 2 2 2 2 1 1 . . . Largest Inventory Capacity 25 | 8 25 25 25 25 25 25 25 25 25 25 25 25 25 25 25 25 25 25 25 25 20 20 20 5 Average Capacity 22 | 8 20 25 25 25 25 25 25 25 25 23 25 25 25 25 25 25 25 25 25 20 20 20 5 5 Most Carried 25 | 6 20 22 23 25 25 25 25 25 25 25 25 25 25 25 25 21 22 25 25 24 20 20 19 5 Average Carried 20 | 5 13 21 22 24 21 24 23 23 24 22 24 25 24 24 23 21 21 23 24 20 18 18 5 3 Final Capacity 25 | 8 25 25 25 25 25 25 25 25 25 25 25 25 25 25 25 25 25 25 25 20 20 20 5 5 Final Carried 25 | 4 20 22 23 23 25 24 24 25 25 24 25 25 25 25 21 21 22 24 24 20 19 18 5 3 Class Distribution -------------------- 41% | Mutant 25% | Golem 11% | Assassin 7% | Bothacker-Golem 6% | Commander-Golem 4% | Infiltrator-Golem Dominant Class ---------------- Mutant | -10/Materials Mutant | -10/Mines Mutant | -10/Exiles Mutant | -9/Mines Mutant | -8/Materials Mutant | -7/Factory Assassin | -7/Lower Caves Assassin | -7/Lower Caves Assassin | -7/Zion Mutant | -7/Deep Caves Golem | -6/Proximity Caves Commander-Golem | -6/Factory Commander-Golem | -6/Garrison Golem | -6/Factory Golem | -6/Garrison Golem | -6/Factory Golem | -6/Garrison Bothacker-Golem | -5/Factory Bothacker-Golem | -4/Factory Bothacker-Golem | -4/DSF Bothacker-Golem | -3/Research Infiltrator-Golem | -2/Research Golem | -1/Access Golem | -1/Command Resources | -11 -10 -10 -10 -9 -8 -7 -7 -7 -7 -7 -6 -6 -6 -6 -6 -6 -6 -5 -4 -4 -3 -2 -1 -1 ----------- Run | Jun Mat Min Exi Min Mat Fac Low Low Zio Dee Pro Fac Gar Fac Gar Fac Gar Fac Fac DSF Res Res Acc Com Matter Collected 3416 | 192 118 . . 39 300 50 86 49 . 981 162 42 93 29 201 . 32 78 . 48 383 191 193 149 Remotely 917 | . . . . . . . . . . 917 . . . . . . . . . . . . . . Salvage Created 15386 | . 318 32 . 138 1117 97 57 399 . 2418 1969 56 769 521 1121 . 369 537 51 1040 344 1020 2115 898 Parts 745 | . 27 5 . 8 65 11 3 21 . 28 96 3 39 19 62 . 24 34 2 43 22 58 118 57 Haulers Intercepted 3 | . 2 . . . 1 . . . . . . . . . . . . . . . . . . . Recyclers Shooed 1 | . . . . . . . . . . . . . . . . . . . . . . . . 1 Parts Field Recycled . | . . . . . . . . . . . . . . . . . . . . . . . . . Retrieved Matter . | . . . . . . . . . . . . . . . . . . . . . . . . . Parts Self-Destructed 113 | . . . . . . . 5 10 . . 98 . . . . . . . . . . . . . Prevented . | . . . . . . . . . . . . . . . . . . . . . . . . . Kills | -11 -10 -10 -10 -9 -8 -7 -7 -7 -7 -7 -6 -6 -6 -6 -6 -6 -6 -5 -4 -4 -3 -2 -1 -1 ------- Run | Jun Mat Min Exi Min Mat Fac Low Low Zio Dee Pro Fac Gar Fac Gar Fac Gar Fac Fac DSF Res Res Acc Com Combat Hostiles Destroyed 271 | . 10 5 . 7 23 2 1 3 . 56 30 1 13 8 18 . 8 11 . 11 7 12 32 13 Melee 18 | . . . . . 12 2 1 3 . . . . . . . . . . . . . . . . Guns 41 | . 10 5 . 7 11 . . . . 5 2 . . . 1 . . . . . . . . . Cannons 131 | . . . . . . . . . . . 24 1 2 7 7 . 5 11 . 11 7 12 31 13 AOE 66 | . . . . . . . . . . 41 4 . 8 1 8 . 3 . . . . . 1 . Classes Destroyed 25 | . 4 1 . 1 5 1 1 3 . 2 2 . 1 1 1 . . . . 1 . . . 1 Worker 7 | . . . . . 1 . . . . . . . . . . . . . 2 . . 1 3 . Builder 3 | . . . . . 1 . . . . . 1 . . . . . . . . . . 1 . . Hauler 3 | . 2 . . . 1 . . . . . . . . . . . . . . . . . . . Recycler 3 | . . . . . 1 . . . . . 2 . . . . . . . . . . . . . Operator 2 | . . . . . 1 . . . . . . . . . . . . . . . . . . 1 Watcher 15 | . 3 . . . 3 . . . . . 2 . . . . . . . . . . 2 4 1 Swarmer 50 | . 6 3 . 3 8 . . . . . 5 . 1 1 4 . . 4 . . 4 . 11 . Cutter 6 | . . . . . . . . . . . . . 3 . . . 3 . . . . . . . Grunt 55 | . 4 . . 3 11 . . 2 . . 12 . 6 4 7 . 2 1 . . . 2 . 1 Brawler 3 | . . . . . . . . 1 . . . . . 1 . . . . . . . . . 1 Duelist 4 | . . . . 1 . . . . . . 2 . . . . . . 1 . . . . . . Protector 1 | . . . . . . . . . . . 1 . . . . . . . . . . . . . Researcher 1 | . . . . . . . . 1 . . . . . . . . . . . . . . . . Sentry 26 | . . . . . 4 . . . . . 5 . 4 . 4 . 2 1 . . . 2 4 . Demolisher 1 | . . . . . . . . . . . . . . 1 . . . . . . . . . . Specialist 4 | . . . . . . . . . . . . . . . 2 . . . . 2 . . . . Hunter 22 | . . . . . . . 1 . . . 4 1 . 2 . . . 2 . 6 . . 4 2 Programmer 38 | . . . . . . 2 . . . . . . . . . . 1 2 . 2 3 8 13 7 Heavy 1 | . . . . . . . . . . . . . . . . . . . . 1 . . . . Behemoth 2 | . . . . . . . . . . . 1 . . . 1 . . . . . . . . . Combat Programmer 1 | . . . . . . . . . . . . . . . . . . . . . . . . 1 Executioner 1 | . . . . . . . . . . . . . . . . . . . . . . . . 1 Z-Light 5 | . . . . . . . . . . 5 . . . . . . . . . . . . . . Decomposer 1 | . . . . . . . . 1 . . . . . . . . . . . . . . . . Samaritan 3 | . . . . . . . . 3 . . . . . . . . . . . . . . . . Assembled 37 | . . 2 . . . . . . . 35 . . . . . . . . . . . . . . Golem 16 | . . . . . . . . . . 16 . . . . . . . . . . . . . . Best Kill Streak 32 | . 3 3 . 3 4 1 1 3 . 32 7 1 10 3 5 . 4 4 2 3 4 5 8 3 Combat Bots Only 32 | . 3 3 . 3 4 1 1 3 . 32 5 1 10 3 5 . 4 4 . 3 4 4 8 3 Max Kills in Single Turn 6 | . 2 2 . 1 2 1 1 1 . 6 2 1 3 2 2 . 3 1 1 1 1 2 2 1 Gunslinging 1 | . . 1 . . 1 . . . . . . . . . . . . . . . . . . . Exploded 6 | . . . . . . . . . . 6 2 . 3 1 2 . 3 . . . . . 1 . Melee 1 | . . . . . 1 1 1 1 . . . . . . . . . . . . . . . . Uniques/NPCs Destroyed 1 | . . . . . . . . . . 1 . . . . . . . . . . . . . . Z-Imprinter (-7/Deep Caves) Combat | -11 -10 -10 -10 -9 -8 -7 -7 -7 -7 -7 -6 -6 -6 -6 -6 -6 -6 -5 -4 -4 -3 -2 -1 -1 -------- Run | Jun Mat Min Exi Min Mat Fac Low Low Zio Dee Pro Fac Gar Fac Gar Fac Gar Fac Fac DSF Res Res Acc Com Damage Taken 16275 | . 249 182 . 276 1323 121 75 152 . 1069 913 . 302 285 1175 . 404 709 . 565 915 1120 3669 2771 Core 1974 | . . 46 . 73 148 16 . . . 129 119 . 29 31 115 . 30 143 . 64 58 166 412 395 Absorbed by Shields 612 | . . . . . . . . . . . . . . . . . . . . . . . . 612 Redirected to Shielding 126 | . . . . . 76 . . 4 . 46 . . . . . . . . . . . . . . Regen/Repaired (Parts) 398 | . . . . . 24 . . . 374 . . . . . . . . . . . . . . . Core Remaining (%) 80 | 100 . . . 52 73 . . . . . 62 . . . . . 75 85 . 94 95 88 . . Volleys Fired 743 | . 23 10 . 15 21 . . . . 107 67 12 19 13 60 2 27 26 4 23 56 76 107 75 Largest 3 | . 2 2 . 2 2 . . . . 2 2 2 2 3 3 3 3 3 1 3 2 3 3 3 Hottest 138 | . 130 130 . 130 130 . . . . 138 60 50 50 75 130 130 130 85 25 85 50 85 75 75 Shots Fired 1295 | . 45 20 . 30 37 . . . . 160 111 16 27 28 90 6 56 51 4 68 66 154 199 127 Gun 187 | . 45 20 . 30 37 . . . . 33 12 . . . 5 2 3 . . . . . . . Cannon 956 | . . . . . . . . . . 77 95 16 15 27 56 4 51 49 3 68 26 154 194 121 Launcher 98 | . . . . . . . . . . 50 4 . 12 1 29 . 2 . . . . . . . Special 54 | . . . . . . . . . . . . . . . . . . 2 1 . 40 . 5 6 Kinetic 33 | . . . . . . . . . . 33 . . . . . . . . . . . . . . Thermal 1022 | . 41 20 . 30 37 . . . . 3 107 16 15 27 56 4 51 49 3 68 26 154 194 121 Explosive 41 | . . . . . . . . . . 37 4 . . . . . . . . . . . . . Electromagnetic 135 | . 4 . . . . . . . . 87 . . 12 1 29 . 2 . . . . . . . Phasic 10 | . . . . . . . . . . . . . . . 5 2 3 . . . . . . . Robot Hit Streak 26 | . 7 4 . 17 15 . . . . 25 11 3 10 8 19 . 9 9 7 13 17 19 26 18 Robot Miss Streak 9 | . 9 7 . 6 5 . . . . 5 2 1 1 2 4 . 1 2 . 3 2 7 2 4 Penetration Max 1 | . . . . . . . . . . 1 . . . . . . . . . . . . . . Secondary Targets 4 | . 1 2 . . 1 . . . . . . . . . . . . . . . . . . . Max Gunslinging Chain 1 | . 1 1 . . 1 . . . . . . . . . . . . . . . . . . . Shots Hit Robots 823 | . 36 20 . 30 73 5 1 11 . 95 73 3 12 17 36 . 21 33 4 42 49 64 108 90 Core Hits 731 | . 50 20 . 34 64 2 1 8 . 271 41 1 24 10 37 . 12 16 1 20 7 26 51 35 Critical Kills 4 | . . . . . . . . . . 4 . . . . . . . . . . . . . . Critical Parts Destroyed . | . . . . . . . . . . . . . . . . . . . . . . . . . Critical Strikes 14 | . . . . . 8 . . . . 6 . . . . . . . . . . . . . . Destroy 4 | . . . . . . . . . . 4 . . . . . . . . . . . . . . Corrupt 2 | . . . . . . . . . . 2 . . . . . . . . . . . . . . Sever 8 | . . . . . 8 . . . . . . . . . . . . . . . . . . . Melee Attacks 122 | . . . . . 73 17 12 14 5 1 . . . . . . . . . . . . . . Impact . | . . . . . . . . . . . . . . . . . . . . . . . . . Slashing 122 | . . . . . 73 17 12 14 5 1 . . . . . . . . . . . . . . Piercing . | . . . . . . . . . . . . . . . . . . . . . . . . . Sneak Attacks 9 | . . . . . 4 . . 5 . . . . . . . . . . . . . . . . Combat Hostiles . | . . . . . . . . . . . . . . . . . . . . . . . . . Follow-up Attacks . | . . . . . . . . . . . . . . . . . . . . . . . . . Damage Inflicted 38766 | . 467 183 . 403 2388 245 57 774 . 7361 4203 131 1540 831 2260 . 897 1301 141 2097 743 3118 5778 3848 Guns 2508 | . 422 183 . 383 511 . . . . 587 257 . . . 66 . 99 . . . . . . . Cannons 24829 | . . . . . . . . . . 1594 3711 131 377 810 960 . 674 1301 141 2097 743 3098 5382 3810 Explosions 8383 | . 45 . . . . . . . . 5180 235 . 1163 6 1234 . 124 . . . . . 396 . Melee 2953 | . . . . . 1877 245 57 774 . . . . . . . . . . . . . . . . Ramming 93 | . . . . 20 . . . . . . . . . 15 . . . . . . . 20 . 38 Kinetic 587 | . . . . . . . . . . 587 . . . . . . . . . . . . . . Thermal 25446 | . 427 183 . 383 511 . . . . . 3968 131 727 810 1011 . 723 1301 141 2097 743 3098 5382 3810 Explosive 5235 | . . . . . . . . . . 4604 235 . . . . . . . . . . . 396 . Electromagnetic 4287 | . 40 . . . . . . . . 2170 . . 813 6 1183 . 75 . . . . . . . Impact . | . . . . . . . . . . . . . . . . . . . . . . . . . Slashing 2953 | . . . . . 1877 245 57 774 . . . . . . . . . . . . . . . . Piercing . | . . . . . . . . . . . . . . . . . . . . . . . . . Phasic 165 | . . . . . . . . . . . . . . . 66 . 99 . . . . . . . Highest Corruption 21 | . . . . . . 1 1 1 1 . . 3 3 7 8 8 10 1 . . 7 7 16 21 Average Corruption 5 | . . . . . . 1 1 1 1 . . 3 3 3 7 8 9 1 . . 3 3 5 18 Corruption Purged . | . . . . . . . . . . . . . . . . . . . . . . . . . Corruption Blocked . | . . . . . . . . . . . . . . . . . . . . . . . . . Effects 235 | . . . . . . 2 6 10 1 . . 14 15 9 31 1 17 5 . . 9 23 41 51 Message Errors 41 | . . . . . . . 1 2 . . . 3 3 . 4 1 4 1 . . . 6 7 9 Matter Fused 54 | . . . . . . 1 4 1 . . . 3 3 4 7 . 3 4 . . 1 4 8 11 Heat Flow Errors 33 | . . . . . . 1 . 3 . . . 2 1 2 3 . 2 . . . 3 4 6 6 Energy Discharges 25 | . . . . . . . . 1 . . . 2 2 2 4 . 2 . . . 1 3 3 5 Parts Rejected 1 | . . . . . . . . . . . . . . . . . 1 . . . . . . . Parts Fused 5 | . . . . . . . . 1 . . . . . . 1 . . . . . . 1 1 1 Data Loss (minor) 30 | . . . . . . . 1 1 1 . . 4 3 1 6 . 2 . . . 2 1 2 6 Data Loss (major) 8 | . . . . . . . . . . . . . 1 . 2 . 2 . . . . 1 1 1 Misfires 13 | . . . . . . . . . . . . . 1 . 2 . . . . . . 2 4 4 Alerts 9 | . . . . . . . . 1 . . . . 1 . 1 . 1 . . . 1 . 2 2 Misdirections 1 | . . . . . . . . . . . . . . . . . . . . . . . . 1 Weapon Failures 15 | . . . . . . . . . . . . . . . 1 . . . . . 1 1 7 5 Overload Shots . | . . . . . . . . . . . . . . . . . . . . . . . . . Overflow Damage 1386 | . . . . . 207 . . 103 . 86 146 27 . 4 . . 31 28 24 85 26 164 353 102 Projectiles 932 | . . . . . . . . . . 28 120 27 . 4 . . 26 28 24 85 26 164 298 102 Explosions 144 | . . . . . . . . . . 58 26 . . . . . 5 . . . . . 55 . Melee 310 | . . . . . 207 . . 103 . . . . . . . . . . . . . . . . Knockbacks 1 | . . . . . . . . . . . . . . . . . . . . . . . . 1 Impact 1 | . . . . . . . . . . . . . . . . . . . . . . . . 1 Kinetic . | . . . . . . . . . . . . . . . . . . . . . . . . . Secondary . | . . . . . . . . . . . . . . . . . . . . . . . . . Self-Inflicted Damage 248 | . . . . . . . . . . 49 . . . . 15 . 49 . . . . . 135 . Shots 6 | . . . . . . . . . . 1 . . . . 1 . 2 . . . . . 2 . Rammed 4 | . . . . 4 . . . . . . . . . . . . . . . . . . . . Targets Rammed 8 | . . . . 4 . . . . . . . . . 2 . . . . . . . 1 . 1 Kicked 4 | . . . . . . . . . . . . . . 2 . . . . . . . 1 . 1 Crushed . | . . . . . . . . . . . . . . . . . . . . . . . . . Highest Temperature 225 | . 185 184 . 199 196 145 . 189 . 197 128 156 221 159 153 . 200 . . 164 157 225 194 183 Average Temperature 78 | . 83 84 . 114 103 73 . 83 . 78 43 92 132 87 90 . 113 . . 70 80 107 99 88 Received Heat Transfer 2225 | . 93 49 . 105 513 . . 54 . 219 216 . 99 . 327 . 129 84 . 12 . 90 54 181 Siege Activations . | . . . . . . . . . . . . . . . . . . . . . . . . . Robots Corrupted 15 | . . . . . . . . . . 10 . . 3 . 2 . . . . . . . . . Combat Hostiles 15 | . . . . . . . . . . 10 . . 3 . 2 . . . . . . . . . Parts Fried 19 | . . . . . . . . . . 2 . . 6 . 10 . . . . . 1 . . . Impact Corruptions . | . . . . . . . . . . . . . . . . . . . . . . . . . Robots Melted 1 | . . . . . . . . . . . . . . . . . . . . 1 . . . . Combat Hostiles . | . . . . . . . . . . . . . . . . . . . . . . . . . Parts Melted 24 | . . . . . . . . . . . 2 . . . . . 5 2 . 2 . 8 5 . Heat Transferred 16558 | . 515 220 . 495 630 . . . . . 2018 75 561 450 750 . 925 975 75 1550 350 2250 2750 1969 Parts Sabotaged 1 | . . . . . . . . . . . . . . . . . . . . . . . 1 . Parts Stolen . | . . . . . . . . . . . . . . . . . . . . . . . . . Parts Stripped . | . . . . . . . . . . . . . . . . . . . . . . . . . Power Chain Reactions 6 | . 1 . . . . . . . . . . . 3 . 1 . 1 . . . . . . . Missiles Intercepted . | . . . . . . . . . . . . . . . . . . . . . . . . . Alert | -11 -10 -10 -10 -9 -8 -7 -7 -7 -7 -7 -6 -6 -6 -6 -6 -6 -6 -5 -4 -4 -3 -2 -1 -1 ------- Run | Jun Mat Min Exi Min Mat Fac Low Low Zio Dee Pro Fac Gar Fac Gar Fac Gar Fac Fac DSF Res Res Acc Com Peak Influence 1349 | . 144 122 . 174 265 139 . . . . . 142 746 935 1206 636 633 380 112 356 215 287 734 1349 Initial 632 | . . 52 . . 19 106 . . . . . 37 . 391 539 632 445 331 100 78 200 . 172 479 Average 209 | . 67 17 . 30 102 62 . . . . . 59 456 598 898 634 579 245 102 270 54 111 239 758 Maximum Alert Level 4 | . . . . . 1 . . . . . . . 3 3 4 2 2 1 . 1 1 1 3 4 Low Security (%) 69 | 100 100 100 . 100 79 100 . . . . . 100 27 . . . . 41 100 24 82 89 62 . Level 1 12 | . . . . . 20 . . . . . . . 2 46 . . . 58 . 75 17 10 13 . Level 2 9 | . . . . . . . . . . . . . 39 2 17 100 100 . . . . . 21 52 Level 3 7 | . . . . . . . . . . . . . 31 50 69 . . . . . . . 2 28 Level 4 1 | . . . . . . . . . . . . . . . 13 . . . . . . . . 18 Level 5 . | . . . . . . . . . . . . . . . . . . . . . . . . . High Security . | . . . . . . . . . . . . . . . . . . . . . . . . . Max Security . | . . . . . . . . . . . . . . . . . . . . . . . . . Sterilizations 1 | . . . . . . . . . . . . . . . . . . . . 1 . . . . Squads Dispatched 36 | . . . . . 3 2 . . . . 1 2 . 2 . . . 3 . 1 3 6 9 4 Investigation 6 | . . . . . 1 . . . . . 1 1 . . . . . . . . . 1 1 1 Extermination 19 | . . . . . . 2 . . . . . 1 . . . . . 3 . . 2 4 5 2 Reinforcement 6 | . . . . . 2 . . . . . . . . . . . . . . 1 1 1 1 . Assault 2 | . . . . . . . . . . . . . . . . . . . . . . . 1 1 Garrison 3 | . . . . . . . . . . . . . . 2 . . . . . . . . 1 . Intercept . | . . . . . . . . . . . . . . . . . . . . . . . . . Searches Triggered . | . . . . . . . . . . . . . . . . . . . . . . . . . Construction Impeded 1 | . . . . . . . . . . . . . . . . . . . . . . 1 . . Haulers Reinforced . | . . . . . . . . . . . . . . . . . . . . . . . . . Active Scanning Responses . | . . . . . . . . . . . . . . . . . . . . . . . . . Cargo Convoy Interrupts . | . . . . . . . . . . . . . . . . . . . . . . . . . Stealth | -11 -10 -10 -10 -9 -8 -7 -7 -7 -7 -7 -6 -6 -6 -6 -6 -6 -6 -5 -4 -4 -3 -2 -1 -1 --------- Run | Jun Mat Min Exi Min Mat Fac Low Low Zio Dee Pro Fac Gar Fac Gar Fac Gar Fac Fac DSF Res Res Acc Com Distress Signals 15 | . . 3 . . 4 . . . . . 1 . . . . . . 1 . . 1 1 3 1 Communications Jammed . | . . . . . . . . . . . . . . . . . . . . . . . . . Distress Signals . | . . . . . . . . . . . . . . . . . . . . . . . . . Times Spotted 395 | . 15 7 . 8 37 3 1 3 . 74 30 2 18 11 25 . 7 17 . 10 12 17 58 40 Peak Tracking Total 37 | . 3 3 . 4 5 1 1 3 . 37 5 1 9 4 5 . 3 2 . 3 4 3 11 7 Tactical Retreats 20 | . . . . . 4 . . . . 2 . . 1 . 3 . . . . . . 1 8 1 Traps | -11 -10 -10 -10 -9 -8 -7 -7 -7 -7 -7 -6 -6 -6 -6 -6 -6 -6 -5 -4 -4 -3 -2 -1 -1 ------- Run | Jun Mat Min Exi Min Mat Fac Low Low Zio Dee Pro Fac Gar Fac Gar Fac Gar Fac Fac DSF Res Res Acc Com Traps Triggered 24 | . 1 . . . 3 . . . . . . 2 2 1 7 . . 2 . 3 . . 2 1 Indirectly 4 | . . . . . . . . . . . . . . . 4 . . . . . . . . . Trap Hack Attempts . | . . . . . . . . . . . . . . . . . . . . . . . . . Triggered . | . . . . . . . . . . . . . . . . . . . . . . . . . Disarmed . | . . . . . . . . . . . . . . . . . . . . . . . . . Reprogrammed . | . . . . . . . . . . . . . . . . . . . . . . . . . Reused . | . . . . . . . . . . . . . . . . . . . . . . . . . Traps Extracted . | . . . . . . . . . . . . . . . . . . . . . . . . . Installed . | . . . . . . . . . . . . . . . . . . . . . . . . . Triggered 1 | . . . . . . . . . . . . . . . 1 . . . . . . . . . Machines | -11 -10 -10 -10 -9 -8 -7 -7 -7 -7 -7 -6 -6 -6 -6 -6 -6 -6 -5 -4 -4 -3 -2 -1 -1 ---------- Run | Jun Mat Min Exi Min Mat Fac Low Low Zio Dee Pro Fac Gar Fac Gar Fac Gar Fac Fac DSF Res Res Acc Com Machines Disabled 46 | . . . . . . . . . 2 3 2 . 2 15 4 . . 3 . 1 . 1 7 6 Max in Single Turn 15 | . . . . . . . . . 1 1 1 . 1 15 2 . . 1 . 1 . 1 1 1 Garrison Access 3 | . . . . . . . . . . . . . . . . . . . . . . . 3 . Garrison Relay 1 | . . . . . . . . . . . . . 1 . . . . . . . . . . . Machines Repaired . | . . . . . . . . . . . . . . . . . . . . . . . . . Machines Sabotaged . | . . . . . . . . . . . . . . . . . . . . . . . . . Overloaded Fab Kills . | . . . . . . . . . . . . . . . . . . . . . . . . . Hacking | -11 -10 -10 -10 -9 -8 -7 -7 -7 -7 -7 -6 -6 -6 -6 -6 -6 -6 -5 -4 -4 -3 -2 -1 -1 --------- Run | Jun Mat Min Exi Min Mat Fac Low Low Zio Dee Pro Fac Gar Fac Gar Fac Gar Fac Fac DSF Res Res Acc Com Machines Accessed 31 | . 4 . 2 . 5 . 1 . 1 . 1 1 1 1 . 1 . 3 1 . 1 1 6 1 Terminals 16 | . 4 . . . 4 . . . . . . . 1 . . . . 1 1 . . 1 3 1 Fabricators 2 | . . . . . . . . . . . . . . . . . . 1 . . 1 . . . Repair Stations 1 | . . . . . 1 . . . . . . . . . . . . . . . . . . . Recycling Units 1 | . . . . . . . . . . . 1 . . . . . . . . . . . . . Scanalyzers . | . . . . . . . . . . . . . . . . . . . . . . . . . Garrison Access 7 | . . . . . . . . . . . . 1 . 1 . 1 . 1 . . . . 3 . Total Hacks 66 | . 12 . 2 . 10 . 1 . 6 . 1 1 3 2 . 1 . 7 2 . 3 2 11 2 Successful 35 | . 6 . 2 . 4 . 1 . 6 . 1 1 . 1 . 1 . 2 1 . 2 . 6 1 Failed 31 | . 6 . . . 6 . . . . . . . 3 1 . . . 5 1 . 1 2 5 1 Catastrophic 6 | . . . . . 2 . . . . . . . 1 . . . . 1 . . . 1 1 . Database Lockouts . | . . . . . . . . . . . . . . . . . . . . . . . . . Manual 34 | . 12 . 1 . 10 . . . 1 . 1 . . . . . . 6 . . 1 2 . . Terminals 42 | . 12 . . . 8 . . . . . . . 3 . . . . 5 2 . . 2 8 2 Fabricators 4 | . . . . . . . . . . . . . . . . . . 1 . . 3 . . . Repair Stations 2 | . . . . . 2 . . . . . . . . . . . . . . . . . . . Recycling Units 1 | . . . . . . . . . . . 1 . . . . . . . . . . . . . Scanalyzers . | . . . . . . . . . . . . . . . . . . . . . . . . . Garrison Access 8 | . . . . . . . . . . . . 1 . 2 . 1 . 1 . . . . 3 . Terminal Hacks 21 | . 4 . 2 . 2 . 1 . 6 . . . . . . . . 1 1 . . . 3 1 Record 1 | . . . 1 . . . . . . . . . . . . . . . . . . . . . Part Schematic 6 | . . . . . . . . . 6 . . . . . . . . . . . . . . . Robot Analysis 2 | . 2 . . . . . . . . . . . . . . . . . . . . . . . Prototype ID Bank 1 | . 1 . . . . . . . . . . . . . . . . . . . . . . . Open Door 5 | . . . . . . . 1 . . . . . . . . . . . . . . . 3 1 Open DSF 1 | . . . . . . . . . . . . . . . . . . . 1 . . . . . Terminal Index 1 | . 1 . . . . . . . . . . . . . . . . . . . . . . . Alert Level 1 | . . . . . 1 . . . . . . . . . . . . . . . . . . . Unreport Threat 2 | . . . . . 1 . . . . . . . . . . . . 1 . . . . . . EX-Prototype ID Bank 1 | . . . 1 . . . . . . . . . . . . . . . . . . . . . Fabricator Hacks 1 | . . . . . . . . . . . . . . . . . . . . . 1 . . . Build 1 | . . . . . . . . . . . . . . . . . . . . . 1 . . . Repair Station Hacks 2 | . . . . . 2 . . . . . . . . . . . . . . . . . . . Scan Component 1 | . . . . . 1 . . . . . . . . . . . . . . . . . . . Repair 1 | . . . . . 1 . . . . . . . . . . . . . . . . . . . Recycling Unit Hacks . | . . . . . . . . . . . . . . . . . . . . . . . . . Scanalyzer . | . . . . . . . . . . . . . . . . . . . . . . . . . Garrison Access Hacks 7 | . . . . . . . . . . . . 1 . 1 . 1 . 1 . . . . 3 . Unlock Access 4 | . . . . . . . . . . . . 1 . 1 . 1 . 1 . . . . . . Seal Access 3 | . . . . . . . . . . . . . . . . . . . . . . . 3 . Unauthorized Hacks 4 | . 2 . . . . . . . . . 1 . . . . . . . . . 1 . . . Terminals 2 | . 2 . . . . . . . . . . . . . . . . . . . . . . . Botnet 1 | . 1 . . . . . . . . . . . . . . . . . . . . . . . Operators 1 | . 1 . . . . . . . . . . . . . . . . . . . . . . . Fabricators 1 | . . . . . . . . . . . . . . . . . . . . . 1 . . . Fabnet 1 | . . . . . . . . . . . . . . . . . . . . . 1 . . . Repair Stations . | . . . . . . . . . . . . . . . . . . . . . . . . . Recycling Units 1 | . . . . . . . . . . . 1 . . . . . . . . . . . . . Tunnel 1 | . . . . . . . . . . . 1 . . . . . . . . . . . . . Scanalyzers . | . . . . . . . . . . . . . . . . . . . . . . . . . Garrison Access . | . . . . . . . . . . . . . . . . . . . . . . . . . Data Cores Recovered 2 | . . . . . 1 . . . . . . . . . . . . 1 . . . . . . Used . | . . . . . . . . . . . . . . . . . . . . . . . . . Hacking Detections 18 | . 4 . . . 4 . . . . . . . 1 1 . 1 . 2 1 . . 1 2 1 Full Trace Events 4 | . . . . . 1 . . . . . . . 1 . . . . . . . . 1 1 . Feedback Events . | . . . . . . . . . . . . . . . . . . . . . . . . . Feedback Blocked . | . . . . . . . . . . . . . . . . . . . . . . . . . Robot Schematics Acquired 4 | . . . . . . . . . 4 . . . . . . . . . . . . . . . Robots Built . | . . . . . . . . . . . . . . . . . . . . . . . . . Authchips . | . . . . . . . . . . . . . . . . . . . . . . . . . Time . | . . . . . . . . . . . . . . . . . . . . . . . . . Total Robot Build Rating . | . . . . . . . . . . . . . . . . . . . . . . . . . Part Schematics Acquired 21 | . . . . . . . . . 21 . . . . . . . . . . . . . . . Parts Built 1 | . . . . . . . . . . . . . . . . . . . . . 1 . . . Authchips . | . . . . . . . . . . . . . . . . . . . . . . . . . Time 139 | . . . . . . . . . . . . . . . . . . . . . 139 . . . Total Part Build Rating 9 | . . . . . . . . . . . . . . . . . . . . . 9 . . . Parts Repaired 1 | . . . . . 1 . . . . . . . . . . . . . . . . . . . Time 26 | . . . . . 26 . . . . . . . . . . . . . . . . . . . Parts Recycled . | . . . . . . . . . . . . . . . . . . . . . . . . . Recycled Matter . | . . . . . . . . . . . . . . . . . . . . . . . . . Retrieved Matter . | . . . . . . . . . . . . . . . . . . . . . . . . . Retrieved Components . | . . . . . . . . . . . . . . . . . . . . . . . . . Parts Scanalyzed . | . . . . . . . . . . . . . . . . . . . . . . . . . Part Schematics Acquired . | . . . . . . . . . . . . . . . . . . . . . . . . . Parts Damaged . | . . . . . . . . . . . . . . . . . . . . . . . . . Bothacking | -11 -10 -10 -10 -9 -8 -7 -7 -7 -7 -7 -6 -6 -6 -6 -6 -6 -6 -5 -4 -4 -3 -2 -1 -1 ------------ Run | Jun Mat Min Exi Min Mat Fac Low Low Zio Dee Pro Fac Gar Fac Gar Fac Gar Fac Fac DSF Res Res Acc Com Used RIF Installer 1 | . . . . . . . . . . . . . . . 1 . . . . . . . . . Robots Hacked 6 | . . . . . . . . . . . . . . . . . . 2 . . 3 . 1 . Non-combat 2 | . . . . . . . . . . . . . . . . . . . . . 1 . 1 . Combat 4 | . . . . . . . . . . . . . . . . . . 2 . . 2 . . . Robot Hacks Applied 11 | . . . . . . . . . . . . . . . . . . 2 . . 6 . 3 . parse_system 1 | . . . . . . . . . . . . . . . . . . . . . 1 . . . purge_threat 3 | . . . . . . . . . . . . . . . . . . . . . 1 . 2 . block_reporting 1 | . . . . . . . . . . . . . . . . . . . . . 1 . . . formatsys_low 2 | . . . . . . . . . . . . . . . . . . . . . 1 . 1 . formatsys_high 4 | . . . . . . . . . . . . . . . . . . 2 . . 2 . . . Relay Couplers Released 5 | . . . . . . . . . . . . . 5 . . . . . . . . . . . Machine Destruction 5 | . . . . . . . . . . . . . 5 . . . . . . . . . . . Attached 4 | . . . . . . . . . . . . . . . . . . 1 . . 2 . 1 . Fabnet Peak Effective % 3 | . . . . . . . . . . . . . . . . . . . . . . 3 1 1 Robots Rewired 12 | . . . . . . . . . . . 11 . . . . . . . 1 . . . . . Allies Hacked 5 | . . . . . . . . . . . . 1 . . . . . . . . . . 1 3 Hacks Repelled . | . . . . . . . . . . . . . . . . . . . . . . . . . Allies | -11 -10 -10 -10 -9 -8 -7 -7 -7 -7 -7 -6 -6 -6 -6 -6 -6 -6 -5 -4 -4 -3 -2 -1 -1 -------- Run | Jun Mat Min Exi Min Mat Fac Low Low Zio Dee Pro Fac Gar Fac Gar Fac Gar Fac Fac DSF Res Res Acc Com Total Allies 31 | . . 3 . . . . . . 2 . 11 . . . . . . 2 1 . 3 . 4 5 Largest Group 6 | . . 3 2 2 . . . . 2 2 6 6 4 2 1 . . 2 3 3 2 . 2 4 Highest-Rated Group 766 | . . 40 24 24 . . . . 192 192 198 198 140 82 40 . . 108 155 155 164 . 112 766 Highest-Rated Ally 219 | . . 16 16 16 . . . . 96 96 41 41 41 41 40 . . 54 54 54 82 . 82 219 Total Orders 12 | . . . . . . . . . . . . 3 2 . 3 . . . . 2 . . . 2 STAY 7 | . . . . . . . . . . . . 2 1 . 2 . . . . 1 . . . 1 FOLLOW 5 | . . . . . . . . . . . . 1 1 . 1 . . . . 1 . . . 1 Ally Attacks 384 | . . 5 . 23 . . . . . 125 48 17 24 17 1 . . 4 . 15 5 . 19 81 Total Damage 15037 | . . 56 . 210 . . . . . 4202 567 356 635 673 54 . . 241 . 644 87 . 441 6871 Kills 75 | . . 2 . 2 . . . . . 29 2 3 7 3 2 . . 2 . . . . 4 19 Allies Corrupted 3 | . . . . . . . . . . . . 1 . . . . . . . 1 1 . . . Allies Melted . | . . . . . . . . . . . . . . . . . . . . . . . . . Field Lobotomies 4 | . . . . . . . . . . . . . . . . . . . . . . . 2 2 Intel | -11 -10 -10 -10 -9 -8 -7 -7 -7 -7 -7 -6 -6 -6 -6 -6 -6 -6 -5 -4 -4 -3 -2 -1 -1 ------- Run | Jun Mat Min Exi Min Mat Fac Low Low Zio Dee Pro Fac Gar Fac Gar Fac Gar Fac Fac DSF Res Res Acc Com Robot Analysis Total 2 | . 2 . . . . . . . . . . . . . . . . . . . . . . . Derelict Logs Recovered 7 | . . 2 . 1 . . 1 1 1 . 1 . . . . . . . . . . . . . Drone Launches . | . . . . . . . . . . . . . . . . . . . . . . . . . Drone Recoveries . | . . . . . . . . . . . . . . . . . . . . . . . . . Exploration | -11 -10 -10 -10 -9 -8 -7 -7 -7 -7 -7 -6 -6 -6 -6 -6 -6 -6 -5 -4 -4 -3 -2 -1 -1 ------------- Run | Jun Mat Min Exi Min Mat Fac Low Low Zio Dee Pro Fac Gar Fac Gar Fac Gar Fac Fac DSF Res Res Acc Com Turns Passed 31990 | 4 1167 2760 1211 1564 2973 843 1277 1131 1831 3845 2297 821 673 507 936 37 459 1132 87 512 1321 1543 1993 1066 Spaces Moved 13478 | 1 419 827 379 440 1179 469 798 708 1190 1448 779 366 283 213 347 13 161 447 38 111 662 769 926 505 Core 9 | . . . . . 1 . . . . . 8 . . . . . . . . . . . . . Treads 2283 | 1 419 827 379 440 217 . . . . . . . . . . . . . . . . . . . Legs 6267 | . . . . . . . . . . 655 771 366 283 213 347 13 161 447 38 111 662 769 926 505 Wheels 4919 | . . . . . 961 469 798 708 1190 793 . . . . . . . . . . . . . . Hover . | . . . . . . . . . . . . . . . . . . . . . . . . . Flight . | . . . . . . . . . . . . . . . . . . . . . . . . . Fastest Speed 100 | 160 160 320 320 320 125 155 155 150 150 150 180 210 210 210 210 210 210 180 210 180 144 108 100 100 Average Speed 190 | 160 249 320 320 320 187 155 155 150 150 194 204 210 210 210 210 210 210 215 210 194 147 147 118 115 Slowest Speed 1950 | 160 320 320 320 320 1550 155 155 155 150 510 1950 210 210 210 210 210 210 240 210 210 180 148 180 183 Overloaded Moves . | . . . . . . . . . . . . . . . . . . . . . . . . . Propulsion Burnouts . | . . . . . . . . . . . . . . . . . . . . . . . . . Robots Hopped . | . . . . . . . . . . . . . . . . . . . . . . . . . Cave-ins Triggered . | . . . . . . . . . . . . . . . . . . . . . . . . . Exploration Rate (%) 47 | 2 82 97 69 98 82 13 92 70 85 78 80 10 32 9 56 1 30 13 2 90 20 17 26 26 Regions Visited 24 Branch Regions 9 Pre-discovered Areas 6 | . . 2 1 1 . . . . 1 . 1 . . . . . . . . . . . . . Known Exits Taken 11 | . . . . . 1 1 1 1 1 1 1 1 . 1 . 1 . . 1 . . . . . Unknown Exits Taken 9 | 1 1 1 1 1 . . . . . . . . . . . . . 1 . . 1 1 1 . Scrap Searched 15 | . . 1 . 1 . . 2 4 3 . 4 . . . . . . . . . . . . . Spaces Dug 164 | . . . . . 29 10 11 1 2 . 10 10 . 2 15 5 6 4 . . 4 35 17 3 Terrain Destroyed 538 | . 3 . . . 29 10 11 1 2 113 57 12 7 43 21 5 29 10 . 7 10 75 77 16 Melee 53 | . . . . . 29 10 11 1 2 . . . . . . . . . . . . . . . Projectile 263 | . . . . . . . . . . . 17 12 5 6 18 5 25 10 . 7 10 75 57 16 AOE 222 | . 3 . . . . . . . . 113 40 . 2 37 3 . 4 . . . . . 20 . Terrain Rammed . | . . . . . . . . . . . . . . . . . . . . . . . . . Walls Destroyed . | . . . . . . . . . . . . . . . . . . . . . . . . . Machines Disabled . | . . . . . . . . . . . . . . . . . . . . . . . . . Actions | -11 -10 -10 -10 -9 -8 -7 -7 -7 -7 -7 -6 -6 -6 -6 -6 -6 -6 -5 -4 -4 -3 -2 -1 -1 --------- Run | Jun Mat Min Exi Min Mat Fac Low Low Zio Dee Pro Fac Gar Fac Gar Fac Gar Fac Fac DSF Res Res Acc Com Total 18386 | 4 496 922 379 559 1768 551 815 746 1228 2319 1379 402 335 246 464 18 229 577 43 360 984 1040 1655 867 Wait 3396 | . 21 84 . 93 415 49 . 16 16 658 381 23 16 10 38 3 38 93 . 204 234 177 563 264 Move 13457 | . 418 826 378 439 1178 468 797 707 1189 1447 778 366 282 213 346 13 160 446 37 110 661 768 925 505 Hop . | . . . . . . . . . . . . . . . . . . . . . . . . . Pick Up 122 | . 17 2 1 4 20 4 3 3 7 31 5 . 4 2 . . . 3 . 1 3 5 5 2 Fast Attach 64 | . 6 . . . 18 2 . 2 . 14 3 . . 1 . . 1 . . . 4 2 9 2 Attach 39 | 2 1 . . 4 13 3 . 2 3 4 . . . . 3 . . . . . 1 . 2 1 Detach 94 | . 1 . . . 6 1 . 1 . 12 7 . . 2 . . 1 6 1 5 15 5 21 10 Swap 58 | . 2 . . . 5 3 1 . 2 15 4 . 1 . 1 . 2 3 1 2 5 5 3 3 Drop 119 | 2 7 . . . 19 4 2 1 6 30 6 1 3 3 . . . . . 5 5 1 20 4 Fire 743 | . 23 10 . 15 21 . . . . 107 67 12 19 13 60 2 27 26 4 23 56 76 107 75 Melee 122 | . . . . . 73 17 12 14 5 1 . . . . . . . . . . . . . . Ram . | . . . . . . . . . . . . . . . . . . . . . . . . . Kick 4 | . . . . . . . . . . . . . . 2 . . . . . . . 1 . 1 Crush 4 | . . . . 4 . . . . . . . . . . . . . . . . . . . . Escape Stasis 36 | . . . . . . . . . . . . . 10 . 16 . . . . 10 . . . . Rewire 128 | . . . . . . . . . . . 128 . . . . . . . . . . . . . Trap . | . . . . . . . . . . . . . . . . . . . . . . . . . Miscellaneous . | . . . . . . . . . . . . . . . . . . . . . . . . . Route ------- -11/Junkyard -10/Materials (discovered 4 exits: [*Mat x2] / [*Min x2]) -10/Mines (discovered 3 exits: [*Mat x2] / *Exi) -10/Exiles -9/Mines (discovered 2 exits: *Mat x2) -8/Materials (discovered 2 exits: *Fac x2) -7/Factory -7/Lower Caves -7/Lower Caves (discovered 2 exits: *Fac / *Zio) -7/Zion (discovered 2 exits: *Dee / [*Pro]) -7/Deep Caves -6/Proximity Caves -6/Factory -6/Garrison -6/Factory -6/Garrison (discovered 2 exits: *Fac x2) -6/Factory -6/Garrison -5/Factory (discovered 2 exits: *Fac / Gar) -4/Factory (discovered 2 exits: Ext / DSF) -4/DSF -3/Research -2/Research -1/Access -1/Command History --------- Turn | Location | Event 5 | -11/Junkyard | Discovered new exit (range 0) 5 | -11/Junkyard | Entered Materials 131 | -10/Materials | Discovered new exit (range 15) 145 | -10/Materials | Discovered new exit (range 16) 312 | -10/Materials | Build established: Mutant 736 | -10/Materials | Discovered new exit (range 9) 837 | -10/Materials | Discovered new exit (range 14) 1172 | -10/Materials | Entered Mines 1317 | -10/Mines | Assembled infested the area 2017 | -10/Mines | A weapon hastily lodged in a ceiling crevice suddenly fell to the ground 2079 | -10/Mines | Discovered new exit (range 11) 2223 | -10/Mines | Assisted by bots powering up and referring to "LRC-V3" 2468 | -10/Mines | Learned location of Storage (-7) 2742 | -10/Mines | Learned location of 1 exit from Materials 2899 | -10/Mines | Discovered new exit (range 9) 3901 | -10/Mines | Deemed a non-threat by the Exiles lab entrance 3901 | -10/Mines | Discovered new exit (range 5) 3932 | -10/Mines | Entered Exiles 3932 | -10/Exiles | Accompanied by 2 allies 4012 | -10/Exiles | Met 8R-AWN 4064 | -10/Exiles | Met EX-HEX 4227 | -10/Exiles | Met EX-DEC 4278 | -10/Exiles | Learned location of Zion (-7) 4480 | -10/Exiles | Met EX-BIN 4524 | -10/Exiles | Aligned with FarCom system 4528 | -10/Exiles | Given EX-Vault access code 4601 | -10/Exiles | Opened EX-Vault 4630 | -10/Exiles | Found Field Lobotomy Kit 4701 | -10/Exiles | Warned to stay clear of 0b10 Research branches 5117 | -10/Exiles | Discovered new exit (range 10) 5143 | -10/Exiles | Left Exiles lab with Field Lobotomy Kit 5143 | -10/Exiles | Entered Mines 5143 | -9/Mines | Accompanied by 2 allies 5255 | -9/Mines | Discovered new exit (range 13) 5719 | -9/Mines | Received a Rocket Launcher from a helpful Derelict 6633 | -9/Mines | Discovered new exit (range 6) 6707 | -9/Mines | Entered Materials 6707 | -8/Materials | Evolved 4 slots: Utility x4 6708 | -8/Materials | Identified exit to Factory 7563 | -8/Materials | Lost 8 parts (2p2n3u1w) 9339 | -8/Materials | Repaired Propulsion Shielding 9655 | -8/Materials | Discovered exit to Factory (range 15) 9680 | -8/Materials | Entered Factory 9680 | -7/Factory | Evolved 2 slots: Utility x2 10485 | -7/Factory | Discovered new exit (range 3) 10488 | -7/Factory | Identified exit to Lower Caves 10523 | -7/Factory | Entered Lower Caves 10843 | -7/Lower Caves | Build established: Assassin 11299 | -7/Lower Caves | Spotted B-75 Beast 11462 | -7/Lower Caves | Encountered a Warlord checkpoint 11568 | -7/Lower Caves | Discovered new exit (range 6) 11797 | -7/Lower Caves | Identified exit to Lower Caves 11800 | -7/Lower Caves | Entered another Lower Caves area 12004 | -7/Lower Caves | Discovered new exit (range 4) 12007 | -7/Lower Caves | Identified exit to Factory 12229 | -7/Lower Caves | Learned Factory non-interactive machine intel 12430 | -7/Lower Caves | Discovered new exit (range 12) 12608 | -7/Lower Caves | Encountered a Warlord checkpoint 12825 | -7/Lower Caves | Found Alien Artifact 12825 | -7/Lower Caves | Identified Core Expander 12825 | -7/Lower Caves | Installed Core Expander, added new Utility slot 12929 | -7/Lower Caves | Identified exit to Zion 12931 | -7/Lower Caves | Entered Zion 12987 | -7/Zion | System corruption cleaned by Quarantine Array 13072 | -7/Zion | Given A8's code to call for help 13105 | -7/Zion | Visited the Megawrench Repair Shop 13186 | -7/Zion | Discovered new exit (range 11) 13329 | -7/Zion | Learned Factory security intel 13990 | -7/Zion | Learned location of Recycling (-7) 14125 | -7/Zion | Found Relay Coupler [Programmer] 14127 | -7/Zion | Found Relay Coupler [Programmer] 14131 | -7/Zion | Found Relay Coupler [Programmer] 14138 | -7/Zion | Found Relay Coupler [Programmer] 14141 | -7/Zion | Found Relay Coupler [Programmer] 14291 | -7/Zion | Megawrench repaired 11 parts 14415 | -7/Zion | Build established: Skirmisher 14631 | -7/Zion | Rebuked by Imprinter 14728 | -7/Zion | Discovered new exit (range 5) 14730 | -7/Zion | Saw the warning signs outside the Deep Caves entrance 14750 | -7/Zion | Enhanced Grunt warped into view, answering call for help 14750 | -7/Zion | Enhanced Grunt warped into view, answering call for help 14758 | -7/Zion | Identified exit to Deep Caves 14762 | -7/Zion | Entered Deep Caves 14762 | -7/Deep Caves | Accompanied by 2 allies 15140 | -7/Deep Caves | Build established: Mutant 15190 | -7/Deep Caves | Attacked by Z-Imprinter 15202 | -7/Deep Caves | Allies destroyed Z-Imprinter 15291 | -7/Deep Caves | Z-Facility disabled 15328 | -7/Deep Caves | Found Prototype Protection 15328 | -7/Deep Caves | Identified Zio. Heavy Carapace 15410 | -7/Deep Caves | Found Zio. Heavy Carapace 15419 | -7/Deep Caves | Found Zio. Heavy Carapace 15434 | -7/Deep Caves | Found Zio. Heavy Carapace 15760 | -7/Deep Caves | Discovered new exit (range 6) 15767 | -7/Deep Caves | Identified exit to Proximity Caves 15901 | -7/Deep Caves | Spotted as-35159 15917 | -7/Deep Caves | Destroyed as-35159 16616 | -7/Deep Caves | Triggered Deep Caves wall 16620 | -7/Deep Caves | Exposed GOLEM chamber 16629 | -7/Deep Caves | Spotted AS-07470 16658 | -7/Deep Caves | Spotted AS-06507 16667 | -7/Deep Caves | Allies destroyed AS-06507 16669 | -7/Deep Caves | Destroyed 32 combat bots 16669 | -7/Deep Caves | Allies destroyed AS-07470 16705 | -7/Deep Caves | Spotted as-47314 16721 | -7/Deep Caves | Destroyed as-47314 17286 | -7/Deep Caves | Found Prototype Device 17286 | -7/Deep Caves | Identified Exp. Thermal Shield 17356 | -7/Deep Caves | Found GOLEM Unit 17945 | -7/Deep Caves | Build established: Golem 18048 | -7/Deep Caves | Found GOLEM Unit 18054 | -7/Deep Caves | Found GOLEM Unit 18059 | -7/Deep Caves | Found GOLEM Unit 18607 | -7/Deep Caves | Entered Proximity Caves 18664 | -6/Proximity Caves | Spotted B-75 Beast 18669 | -6/Proximity Caves | Destroyed B-75 Beast 18911 | -6/Proximity Caves | Attracted the attention of an 0b10 checkpoint 19066 | -6/Proximity Caves | Learned Factory garrison access intel 19305 | -6/Proximity Caves | Snuck into a huge 0b10 base via the rear entrance 19629 | -6/Proximity Caves | Spotted B-75 Beast 19654 | -6/Proximity Caves | Allies destroyed B-75 Beast 20069 | -6/Proximity Caves | Discovered exit to Factory (range 16) 20546 | -6/Proximity Caves | Build established: Commander-Golem 20904 | -6/Proximity Caves | Entered Factory 20904 | -6/Factory | Accompanied by 6 allies 20904 | -6/Factory | Evolved 2 slots: Power x1, Weapon x1 20906 | -6/Factory | Loaded intel: 227 non-interactive machine locations 20907 | -6/Factory | Loaded intel: 4 garrison access locations 21725 | -6/Factory | Identified exit to Garrison 21725 | -6/Factory | Entered Garrison 21725 | -6/Garrison | Accompanied by 4 allies 21794 | -6/Garrison | Triggered checkpoint 21904 | -6/Garrison | Triggered checkpoint 21904 | -6/Garrison | Triggered checkpoint 21945 | -6/Garrison | Destroyed 10 combat bots 21984 | -6/Garrison | Triggered checkpoint 22020 | -6/Garrison | Triggered checkpoint 22042 | -6/Garrison | Discovered new exit (range 15) 22189 | -6/Garrison | Garrison Relay disabled 22398 | -6/Garrison | Entered Factory 22398 | -6/Factory | Accompanied by 2 allies 22434 | -6/Factory | Build established: Golem 22792 | -6/Factory | Garrison activated, responded to threat 22905 | -6/Factory | Identified exit to Garrison 22905 | -6/Factory | Entered Garrison 22905 | -6/Garrison | Accompanied by 1 ally 23096 | -6/Garrison | Spotted B-75 Beast 23132 | -6/Garrison | Triggered checkpoint 23311 | -6/Garrison | Triggered checkpoint 23343 | -6/Garrison | Discovered new exit (range 15) 23611 | -6/Garrison | Triggered checkpoint 23684 | -6/Garrison | Spotted B-75 Beast 23693 | -6/Garrison | Triggered checkpoint 23720 | -6/Garrison | Destroyed B-75 Beast 23741 | -6/Garrison | Discovered new exit (range 12) 23745 | -6/Garrison | Lost 6 parts (3u3w) 23794 | -6/Garrison | Installed Relay Interface Framework 23841 | -6/Garrison | Entered Factory 23878 | -6/Factory | Identified exit to Garrison 23878 | -6/Factory | Entered Garrison 24000 | -6/Garrison | Triggered checkpoint 24009 | -6/Garrison | System corruption reached 10% 24304 | -6/Garrison | Discovered new exit (range 14) 24337 | -6/Garrison | Entered Factory 24337 | -5/Factory | Evolved 2 slots: Utility x2 24840 | -5/Factory | Identified exit to Garrison 25030 | -5/Factory | Build established: Bothacker-Golem 25452 | -5/Factory | Discovered new exit (range 8) 25469 | -5/Factory | Entered another Factory area 25469 | -4/Factory | Accompanied by 2 allies 25469 | -4/Factory | Evolved 2 slots: Utility x2 25470 | -4/Factory | Identified exit to Extension 25554 | -4/Factory | Identified exit to DSF 25556 | -4/Factory | Entered DSF 25556 | -4/DSF | Accompanied by 3 allies 25603 | -4/DSF | Additional patrols routed to DSF 25679 | -4/DSF | Discovered new exit (range 15) 25865 | -4/DSF | Sterilization system engaged 25885 | -4/DSF | Ambient heat levels rising (+10) 25900 | -4/DSF | Ambient heat levels rising (+10) 25915 | -4/DSF | Ambient heat levels rising (+10) 25930 | -4/DSF | Ambient heat levels rising (+10) 25945 | -4/DSF | Ambient heat levels rising (+10) 25960 | -4/DSF | Ambient heat levels rising (+10) 25975 | -4/DSF | Ambient heat levels rising (+10) 25990 | -4/DSF | Ambient heat levels rising (+10) 26005 | -4/DSF | Ambient heat levels rising (+10) 26020 | -4/DSF | Ambient heat levels rising (+10) 26035 | -4/DSF | Ambient heat levels rising (+10) 26050 | -4/DSF | Ambient heat levels rising (+10) 26065 | -4/DSF | Ambient heat levels rising (+10) 26068 | -4/DSF | Entered Research 26068 | -3/Research | Evolved 2 slots: Utility x2 26893 | -3/Research | Found Launcher Loader 27067 | -3/Research | Fabricated Adv. Cloaking Device (x1) 27385 | -3/Research | Discovered new exit (range 4) 27389 | -3/Research | Entered another Research area 27389 | -2/Research | Evolved 2 slots: Propulsion x2 27477 | -2/Research | Build established: Golem 27864 | -2/Research | Build established: Infiltrator-Golem 28027 | -2/Research | Spotted B-90 Cyclops 28223 | -2/Research | Discovered new exit (range 16) 28932 | -2/Research | Entered Access 28932 | -1/Access | Evolved 2 slots: Utility x2 29295 | -1/Access | Build established: Golem 30143 | -1/Access | Spotted B-99 Colossus 30385 | -1/Access | Spotted B-99 Colossus 30468 | -1/Access | Garrison activated, responded to threat 30480 | -1/Access | System corruption reached 10% 30483 | -1/Access | Assimilated P-80 Master with FLK Orb 30491 | -1/Access | Master 10a assimilated hostile S-43 Plague 30499 | -1/Access | Destroyed 8 combat bots 30521 | -1/Access | Lost 4 parts (1p2u1w) 30542 | -1/Access | Assimilated Y-72 Warden with FLK Orb 30682 | -1/Access | First assault squad dispatched 30785 | -1/Access | Lost 3 parts (3u) 30919 | -1/Access | Discovered new exit (range 7) 30925 | -1/Access | Entered Command 31389 | -1/Command | Assimilated H-81 Overseer with FLK Orb 31494 | -1/Command | Spotted M Guard 31496 | -1/Command | Spotted Combat Programmer 31497 | -1/Command | Spotted Combat Programmer 31498 | -1/Command | Spotted M Guard 31502 | -1/Command | Assimilated Combat Programmer with FLK Orb 31514 | -1/Command | Destroyed Combat Programmer 31522 | -1/Command | Combat Programmer assimilated hostile M Guard 31539 | -1/Command | Allies destroyed M Guard 31556 | -1/Command | Lost 6 parts (1p1n3u1w) 31662 | -1/Command | Combat Programmer assimilated hostile H-88 Terminator 31701 | -1/Command | Spotted B-99 Colossus 31709 | -1/Command | First assault squad dispatched 31720 | -1/Command | Combat Programmer assimilated hostile B-99 Colossus 31961 | -1/Command | Build established: Commander-Golem 31975 | -1/Command | Spotted Alpha 7 31976 | -1/Command | Spotted Striker 31976 | -1/Command | Spotted Executioner 31976 | -1/Command | Destroyed Executioner 31978 | -1/Command | Spotted Alpha 7 31978 | -1/Command | Spotted Striker 31978 | -1/Command | Spotted Executioner 31978 | -1/Command | Spotted Executioner 31987 | -1/Command | Core integrity fell below 50% 31991 | -1/Command | Self-destructed Last Messages --------------- 31983_ Penetrated by Slug. 31983_ Slug penetrates Colossus 10a. 31984_ System corrupted: Heat flow error (+141). 31984_ Slug penetrates M Guard. 31984_ Slug penetrates Colossus 10a. 31985_ Slug penetrates M Guard. 31985_ M Guard destroyed. 31985_ Alpha 7 knocked back. 31986_ Destroyed Prototype Processor. 31986_ Executioner knocked back. 31986_ Penetrated by Slug. 31987_ Striker knocked back. 31987_ Slug penetrates Overseer 10a. 31987_ Slug penetrates Wall. 31988_ Slug penetrates Overseer 10a. 31988_ Colossus 10a destroyed. 31988_ Slug penetrates Overseer 10a. 31988_ Overseer 10a destroyed. 31988_ Penetrated by Slug. 31988_ System corrupted: Asb. Focal Cannon failed to cycle. Map ----- +----------------------------------------------------+ | ???????????# *%= #????? | | ???????????## ! ###############????? | | ??????????### % #??????????????????? | | ??????????#" = #??????????????????? | | ??????????#" !! %% #??????????????????? | | ??????????#" ! % #??????????????????? | | ??????????#T !! #??????????????????? | | ??????????#" #??????????????????? | | ??????????#" #??????????????????? | | ??????????#"" #??????????????????? | | ??????????### ##??????????????????? | | ????????????# #???????????????????? | | ????????????# #???????????????????? | | ??????#????## #""" """## #???????????????????? | | ??????# ???#" #"""T"""## #???????????????????? | | ??????## #?## ########## #???????????????????? | | ??????# ?# #????????# #???????????????????? | | ??????# # #????????# #???????????????????? | | ??????# ; ##???????# #???????????????????? | | ??????# # ;;######## #???????????????????? | | ??????## #### #???????????????????? | | ????????????# p #????????????BB?????? | | ????????w??## #????????????BB?????? | | ??????????# ; #??????????E????????? | | ??????????## % %##; !!%=! ????????? | | ??????????## @ ;K %%^!* ^????????? | | ??????????## = %% K7 / E [% ^????????? | | ?????????# [% / % ^ ????????? | | ?????????# ! % 7/ E ^ ?????????? | | ?????????# # ### #######;#+#;## % ^^ ??BB?????? | | ?????????## ???? #??# # # ???BB?????? | | ??????????# ???? ?#??????????????????? | | ??????????# ????! ???????????????????? | | ??????????# ???? ???????????????????? | | ??????????# "" % #??? #??????????????????? | | ??????????# """" ???? #??????????????????? | | ??????????# ??"" ??? #??????????????????? | | ???????????????? ??? #??????????????????? | | ????????????????? ???? #??????????????????? | | ??????????????????????#########??????????????????? | | ?????????????????????????????????????????????????? | | ?????????????????????????????????????????????????? | | ?????????????????????????????????????????????????? | | ?????????????????????????????????????????????????? | | ?????????????????????????????????????????????????? | | ?????????????????????????????????????????????????? | | ?????????????????????????????????????????????????? | | ?????????????????????????????????????????????????? | | | | | +----------------------------------------------------+ Best States ------------- Heat Dissipation 112 Coolant Potential 100 Energy Generation 53 Energy Capacity 2300 Matter Stores 300 Matter Capacity 300 Sight Range 16 Robot Scan Range 15 Terrain Scan Density 10 Jamming Range 14 Cloak Strength 4 Power Amplification 20 Additional Mass Support 20 Armor Coverage 1200 Resistance: KI 15 Resistance: TH 15 Resistance: EX 15 Resistance: EM 15 Resistance: I 15 Resistance: S 15 Resistance: P 15 Propulsion Shielding 33 Phase Shifting 8 Evasion (%) 69 Targeting Accuracy 8 Target Analysis 8 Core Analysis 8 Recoil Reduction 2 Particle Charging 25 Offensive Hacking 14 Defensive Hacking 10 Relay Coupler Types 2 Relay Coupler Value 74 Item Schematics ----------------- Beamcaster | -7/Zion | Free Riot Gun | -7/Zion | Free Battle Rifle | -7/Zion | Free Battle Cannon | -7/Zion | Free Slug Cannon | -7/Zion | Free Ripper | -7/Zion | Free Drone Bay | -7/Zion | Archive Imp. Melee Analysis Suite | -7/Zion | Archive Mak. Armor Plating | -7/Zion | Archive Matter Compressor | -7/Zion | Archive Hvy. Phase Cannon | -7/Zion | Archive Hvy. Ion Cannon | -7/Zion | Archive Hvy. Plasma Cannon | -7/Zion | Archive Imp. Salvage Targeting Computer | -7/Zion | Archive Phase Cannon | -7/Zion | Archive Hvy. Riot Gun | -7/Zion | Archive Focal Shield | -7/Zion | Archive Component Analysis Suite | -7/Zion | Archive Imp. Particle Charger | -7/Zion | Archive Arm. Huge Wheel | -7/Zion | Archive Hyp. Coil Gun | -7/Zion | Archive Robot Schematics ------------------ K-01 Serf | -7/Zion | Archive G-47 Trooper | -7/Zion | Archive L-31 Rogue | -7/Zion | Archive G-73 Enforcer | -7/Zion | Archive Fabricated ------------ Adv. Cloaking Device | x1 | -3/Research | Preloaded Alien Tech Used ----------------- Core Expander Achievements -------------- Full Golem Challenges ------------ None Game ------ Seed EnergyGuidanceDerivative Manual? 0 Play Time 02:19:22 Cumulative 310.2 hours Start 2023.04.20 @ 19:55:57 End 2023.04.21 @ 11:59:31 Sessions 6 Manual Loads 0 Difficulty Rogue Special Mode None Game No. 452 Rogue 429 Adventurer 4 Explorer 19 Win Type - Total 13 Types 10/0/0/2/1/0/0/0/0 Lore% 71 Gallery% 91 Achievement% 76 Wizard Run 0 Options --------- ASCII 0 Keyboard 1 Movement Numpad Keybinds 0 Fullscreen 2 Font 18/SmallcapsGlow Map View 76x50 Tactical HUD 1 Map Filters NONE Filters NONE Steam X RUN: 2b8f77c8-b326-4524-abd3-168fe2920d4d